bitfinex/quotes_SOLUSD_20250529
["timestamp","ask_amount","ask_price","bid_price","bid_amount"]
[1748519055842,5.78536303,172.85,172.84,12.40963316]
[1748519056167,5.9275246,172.85,172.84,12.40963316]
[1748519056342,147.3,172.86,172.85,0.14216157]
[1748519056548,5.78402452,172.89,172.85,12.40963316]
[1748519056743,5.78402452,172.89,172.87,12.26747159]
[1748519057426,0.28432314,172.88,172.87,12.40963316]
[1748519057626,0.14216157,172.88,172.87,12.40963316]
[1748519058038,0.28432314,172.88,172.87,12.40963316]
[1748519058224,6.06868223,172.88,172.87,12.40963316]
[1748519063650,5.92652066,172.88,172.87,12.40963316]
[1748519065262,5.78406197,172.89,172.87,12.40963316]
[1748519065477,5.92622354,172.89,172.88,12.26747159]
[1748519066183,0.28432314,172.88,172.85,26.0]
[1748519066459,0.28432314,172.88,172.86,0.14216157]
[1748519066675,6.06901684,172.87,172.86,7.98738887]
[1748519066845,5.92685527,172.87,172.86,7.98738887]
[1748519067655,5.7846937,172.87,172.86,7.98738887]
[1748519068748,5.78435909,172.88,172.86,7.98738887]
[1748519069062,5.92652066,172.88,172.87,7.8452273]
[1748519071048,5.92652066,172.88,172.86,7.98738887]
[1748519071449,0.14216157,172.87,172.86,7.98738887]
[1748519072170,5.92685527,172.87,172.86,12.4037683]
[1748519073336,6.06901684,172.87,172.86,0.14216157]
[1748519073742,6.06901684,172.87,172.86,12.4037683]
[1748519074471,5.92685527,172.87,172.86,12.4037683]
[1748519079370,0.14216157,172.86,172.83,12.26160673]
[1748519079676,6.06901684,172.87,172.81,12.26160673]
[1748519079677,0.28432314,172.84,172.81,12.26160673]
[1748519079879,0.28432314,172.84,172.82,0.14216157]
[1748519080749,0.28432314,172.84,172.83,0.14216157]
[1748519082282,6.07002089,172.84,172.83,0.14216157]
[1748519084387,6.07002089,172.84,172.81,0.14216157]
[1748519084550,6.07002089,172.84,172.83,0.14216157]
[1748519085161,6.07002089,172.84,172.81,0.14216157]
[1748519085790,6.07002089,172.84,172.8,38.26160673]
[1748519085791,6.07002089,172.84,172.78,0.14216157]
[1748519085970,6.07002089,172.84,172.81,0.14216157]
[1748519088793,6.07002089,172.84,172.82,0.14216157]
[1748519089502,6.07002089,172.84,172.83,12.26160673]
[1748519090297,6.07002089,172.84,172.78,0.14216157]
[1748519090498,6.07002089,172.84,172.82,12.26160673]
[1748519091964,6.07002089,172.84,172.82,7.85140015]
[1748519092691,6.07002089,172.84,172.81,7.99356172]
[1748519093091,6.07002089,172.84,172.81,0.14216157]
[1748519093392,20.53426527,172.84,172.8,7.85140015]
[1748519094078,0.28432314,172.82,172.8,7.85140015]
[1748519094503,6.07069045,172.82,172.81,7.85140015]
[1748519094868,0.14216157,172.82,172.81,7.99356172]
[1748519095195,5.78579047,172.84,172.83,26.0]
[1748519095393,5.78579047,172.84,172.83,33.85140015]
[1748519095575,5.92795204,172.84,172.83,33.85140015]
[1748519095898,5.78535332,172.86,172.83,33.99356172]
[1748519096123,6.06967646,172.86,172.85,7.99356172]
[1748519096998,6.06967646,172.86,172.85,7.85140015]
[1748519097978,6.06967646,172.86,172.85,12.26302688]
[1748519100594,0.28432314,172.85,172.82,12.26302688]
[1748519101275,18.933972,172.85,172.82,12.26302688]
[1748519101477,18.933972,172.85,172.81,12.26302688]
[1748519101676,18.933972,172.83,172.79,12.26302688]
[1748519101899,31.19699888,172.81,172.76,0.14216157]
[1748519102101,0.28432314,172.79,172.76,0.14216157]
[1748519102413,18.933972,172.79,172.74,0.14216157]
[1748519102623,18.933972,172.79,172.75,12.26302688]
[1748519102770,18.933972,172.79,172.74,0.14216157]
[1748519102771,0.14216157,172.78,172.74,12.26302688]
[1748519102975,0.28432314,172.77,172.73,12.26302688]
[1748519103175,0.28432314,172.77,172.74,12.26302688]
[1748519104283,0.28432314,172.75,172.73,12.26302688]
[1748519105207,0.28432314,172.75,172.74,12.26302688]
[1748519105512,18.933972,172.75,172.71,26.0]
[1748519105718,18.933972,172.75,172.71,38.26302688]
[1748519106605,0.28432314,172.73,172.71,38.26302688]
[1748519107111,0.28432314,172.73,172.7,0.14216157]
[1748519107318,0.28432314,172.73,172.71,12.26302688]
[1748519107684,0.28432314,172.71,172.7,0.14216157]
[1748519107907,0.28432314,172.71,172.7,12.40518845]
[1748519108212,0.28432314,172.71,172.7,12.26302688]
[1748519108580,0.28432314,172.71,172.69,0.14216157]
[1748519108813,0.28432314,172.71,172.7,12.26302688]
[1748519108984,0.28432314,172.71,172.69,0.14216157]
[1748519109181,0.28432314,172.71,172.7,12.26302688]
[1748519109617,0.28432314,172.71,172.69,0.14216157]
[1748519109915,0.28432314,172.69,172.66,12.40518845]
[1748519110095,0.28432314,172.69,172.65,0.14216157]
[1748519110422,0.28432314,172.69,172.67,12.26302688]
[1748519111011,0.14216157,172.67,172.66,0.14216157]
[1748519111218,5.93291997,172.69,172.66,12.40518845]
[1748519111521,0.14216157,172.68,172.65,0.14216157]
[1748519111726,0.14216157,172.68,172.67,12.40518845]
[1748519112301,0.28432314,172.7,172.68,0.14216157]
[1748519112494,0.14216157,172.7,172.68,0.14216157]
[1748519112810,0.14216157,172.7,172.69,12.40518845]
[1748519113015,0.28432314,172.72,172.7,0.14216157]
[1748519113182,5.78966962,172.73,172.71,12.26302688]
[1748519113384,5.78966962,172.73,172.7,0.14216157]
[1748519113692,0.14216157,172.73,172.72,12.40518845]
[1748519114226,5.78871201,172.75,172.73,0.14216157]
[1748519114412,5.78871201,172.75,172.73,12.40518845]
[1748519114721,0.14216157,172.73,172.64,26.0]
[1748519115016,0.14216157,172.69,172.68,12.40518845]
[1748519116399,5.79038795,172.7,172.69,0.14216157]
[1748519116619,5.93226696,172.71,172.69,12.40518845]
[1748519116792,0.14216157,172.7,172.69,0.14216157]
[1748519116998,5.79010539,172.71,172.69,12.40518845]
[1748519117317,33.12091437,172.76,172.7,12.26302688]
[1748519117626,0.28432314,172.75,172.74,12.26302688]
[1748519118698,6.07303515,172.75,172.74,12.26302688]
[1748519120209,5.93087358,172.75,172.74,12.40518845]
[1748519120421,5.78871201,172.75,172.74,12.40518845]
[1748519121696,5.9305385,172.76,172.75,0.14216157]
[1748519121925,5.9305385,172.76,172.75,12.40518845]
[1748519122621,6.07270007,172.76,172.75,12.26302688]
[1748519123010,0.28432314,172.75,172.71,0.14216157]
[1748519123217,0.28432314,172.75,172.74,12.26302688]
[1748519124622,5.78904712,172.74,172.71,0.14216157]
[1748519124930,5.93120869,172.74,172.73,12.40518845]
[1748519125242,0.28432314,172.78,172.73,12.40518845]
[1748519125418,0.14216157,172.78,172.77,12.26302688]
[1748519125831,0.28432314,172.78,172.77,12.26302688]
[1748519126032,0.14216157,172.78,172.77,12.26302688]
[1748519126341,20.25580183,172.79,172.77,12.40518845]
[1748519126342,5.78737195,172.79,172.77,12.40518845]
[1748519126518,6.07169509,172.79,172.78,12.26302688]
[1748519126717,5.92953352,172.79,172.78,12.40518845]
[1748519127034,5.78737195,172.79,172.78,12.40518845]
[1748519127233,5.92953352,172.79,172.78,12.40518845]
[1748519127740,0.14216157,172.81,172.79,0.14216157]
[1748519127741,5.78701716,172.81,172.79,0.14216157]
[1748519127950,5.78701716,172.81,172.8,12.26302688]
[1748519128860,0.14216157,172.82,172.81,0.14216157]
[1748519129179,0.14216157,172.82,172.81,12.40518845]
[1748519129368,0.14216157,172.82,172.77,8.33333333]
[1748519129660,0.14216157,172.81,172.78,12.26302688]
[1748519129828,0.14216157,172.81,172.79,12.26302688]
[1748519130033,0.14216157,172.81,172.77,8.33333333]
[1748519130234,0.14216157,172.81,172.79,12.26302688]
[1748519131268,0.28432314,172.79,172.77,8.33333333]
[1748519131444,0.28432314,172.79,172.78,12.26302688]
[1748519132362,6.07169509,172.79,172.78,12.26302688]
[1748519134058,6.07169509,172.79,172.77,8.33333333]
[1748519134363,6.07169509,172.79,172.78,12.26302688]
[1748519135080,6.07169509,172.79,172.77,8.33333333]
[1748519135081,18.933972,172.78,172.77,8.33333333]
[1748519135233,166.37613357,172.78,172.77,8.33333333]
[1748519136932,172.16384048,172.78,172.77,8.33333333]
[1748519138175,50.86384048,172.78,172.77,8.33333333]
[1748519138639,63.12686736,172.78,172.77,8.33333333]
[1748519139166,50.86384048,172.78,172.77,8.33333333]
[1748519139538,37.12686736,172.78,172.77,8.33333333]
[1748519139865,24.86384048,172.78,172.77,8.33333333]
[1748519140438,24.72167891,172.78,172.77,8.33333333]
[1748519140844,24.86384048,172.78,172.77,8.33333333]
[1748519144442,24.72167891,172.78,172.77,8.33333333]
[1748519146860,24.86384048,172.78,172.77,8.33333333]
[1748519147460,37.12686736,172.78,172.77,8.33333333]
[1748519147769,24.86384048,172.78,172.77,8.33333333]
[1748519148143,24.72167891,172.78,172.77,8.33333333]
[1748519148550,24.57951734,172.78,172.77,8.33333333]
[1748519149163,24.72167891,172.78,172.77,8.33333333]
[1748519149652,153.08742948,172.79,172.77,20.73852178]
[1748519149851,5.78706307,172.8,172.78,12.40518845]
[1748519150171,5.78603251,172.83,172.79,12.40518845]
[1748519150344,6.1671,172.9,172.79,12.40518845]
[1748519150345,5.78536303,172.85,172.82,12.40518845]
[1748519150545,5.78536303,172.85,172.84,12.40518845]
[1748519151184,6.06968617,172.85,172.84,12.26302688]
[1748519151753,6.06968617,172.85,172.8,26.0]
[1748519151754,0.28432314,172.84,172.8,26.0]
[1748519151970,18.933972,172.84,172.82,12.26302688]
[1748519152174,18.933972,172.84,172.8,12.40518845]
[1748519152369,20.2511138,172.83,172.78,0.14216157]
[1748519152762,20.2511138,172.83,172.8,12.26302688]
[1748519153591,5.78603251,172.83,172.81,0.14216157]
[1748519153759,5.78603251,172.83,172.82,12.40518845]
[1748519154094,5.78536303,172.85,172.82,12.40518845]
[1748519154257,5.9275246,172.85,172.84,12.40518845]
[1748519155261,5.78536303,172.85,172.84,12.40518845]
[1748519156370,0.14216157,172.86,172.85,0.14216157]
[1748519156569,0.14216157,172.86,172.85,12.40518845]
[1748519157890,5.92718991,172.86,172.85,12.40518845]
[1748519159996,5.92718991,172.86,172.85,0.14216157]
[1748519160186,5.92718991,172.86,172.85,12.40518845]
[1748519160377,6.06935148,172.86,172.85,12.26302688]
[1748519160574,6.06935148,172.86,172.81,0.14216157]
[1748519160786,0.14216157,172.85,172.81,0.14216157]
[1748519160978,18.933972,172.85,172.83,12.26302688]
[1748519161387,18.933972,172.85,172.79,0.14216157]
[1748519161589,18.933972,172.85,172.84,12.26302688]
[1748519161892,39.1827426,172.85,172.83,12.26302688]
[1748519162067,39.1827426,172.85,172.84,12.26302688]
[1748519163097,20.53309374,172.85,172.84,12.26302688]
[1748519167280,0.14216157,172.84,172.8,26.0]
[1748519167573,0.14216157,172.84,172.83,12.26302688]
[1748519168072,0.14216157,172.84,172.8,26.0]
[1748519168300,5.78603251,172.83,172.8,26.0]
[1748519168474,5.78603251,172.83,172.82,12.40518845]
[1748519170098,18.64964886,172.87,172.82,12.40518845]
[1748519170099,5.7846937,172.87,172.83,0.14216157]
[1748519170297,5.7846937,172.87,172.85,12.26302688]
[1748519170484,0.14216157,172.86,172.85,12.26302688]
[1748519170994,5.7846937,172.87,172.85,12.40518845]
[1748519171188,5.92685527,172.87,172.86,12.26302688]
[1748519171516,5.78302105,172.92,172.87,0.14216157]
[1748519171802,5.78302105,172.92,172.91,12.26302688]
[1748519172180,6.06734419,172.92,172.91,12.26302688]
[1748519172678,5.92518262,172.92,172.91,12.26302688]
[1748519172877,6.06734419,172.92,172.91,12.26302688]
[1748519173074,5.78302105,172.92,172.91,12.26302688]
[1748519173278,5.78168362,172.96,172.91,12.40518845]
[1748519173519,5.78168362,172.96,172.95,12.26302688]
[1748519173872,6.06600676,172.96,172.95,12.26302688]
[1748519174076,5.78168362,172.96,172.95,12.26302688]
[1748519174504,5.92384519,172.96,172.95,12.26302688]
[1748519174875,6.06600676,172.96,172.95,12.26302688]
[1748519176391,0.28432314,172.95,172.92,0.14216157]
[1748519176608,0.28432314,172.95,172.94,12.26302688]
[1748519177188,0.28432314,172.95,172.92,0.14216157]
[1748519177394,0.28432314,172.95,172.94,12.26302688]
[1748519177890,5.78235226,172.94,172.92,0.14216157]
[1748519178201,5.92451383,172.94,172.93,12.26302688]
[1748519183810,5.78208653,172.95,172.93,12.26302688]
[1748519184013,0.28432314,172.97,172.94,12.26302688]
[1748519184357,6.0656725,172.97,172.96,12.26302688]
[1748519186144,6.0656725,172.97,172.95,12.26302688]
[1748519188213,6.0656725,172.97,172.94,12.40518845]
[1748519188834,6.0656725,172.97,172.94,12.26302688]
[1748519189035,20.51904591,172.97,172.92,0.14216157]
[1748519189214,20.51904591,172.97,172.94,12.26302688]
[1748519189668,20.51904591,172.97,172.95,12.26302688]
[1748519189810,6.0656725,172.97,172.95,12.26302688]
[1748519191139,20.51904591,172.97,172.94,12.26302688]
[1748519191648,20.51904591,172.97,172.92,12.26302688]
[1748519191946,20.51904591,172.97,172.89,26.0]
[1748519191947,20.51904591,172.97,172.9,0.14216157]
[1748519192147,20.51904591,172.97,172.92,12.26302688]
[1748519192754,20.51904591,172.97,172.93,12.26302688]
[1748519194416,18.64964886,172.96,172.93,12.26302688]
[1748519194621,0.28432314,172.92,172.87,12.26302688]
[1748519194822,0.28432314,172.9,172.87,12.26302688]
[1748519196122,0.28432314,172.9,172.86,12.40518845]
[1748519196739,5.78402452,172.89,172.86,12.40518845]
[1748519196934,5.78402452,172.89,172.87,12.26302688]
[1748519198532,12.54735002,172.88,172.78,0.14216157]
[1748519198766,0.28432314,172.85,172.77,12.8246178]
[1748519198935,0.28432314,172.85,172.81,12.40518845]
[1748519199259,0.28432314,172.85,172.82,12.26302688]
[1748519199556,0.28432314,172.85,172.83,0.14216157]
[1748519199557,0.14216157,172.85,172.83,0.14216157]
[1748519200063,0.14216157,172.87,172.84,12.26302688]
[1748519200255,0.28432314,172.88,172.85,12.26302688]
[1748519200551,5.78454254,172.88,172.86,12.26302688]
[1748519200741,5.92670411,172.88,172.87,12.26302688]
[1748519201345,5.92670411,172.88,172.86,12.26302688]
[1748519202869,5.92670411,172.88,172.87,12.26302688]
[1748519203838,5.92670411,172.88,172.86,12.26302688]
[1748519210255,0.28432314,172.87,172.82,26.0]
[1748519210567,0.28432314,172.87,172.84,0.14216157]
[1748519211876,5.78502834,172.86,172.84,0.14216157]
[1748519212960,5.78502834,172.86,172.84,12.40518845]
[1748519213478,5.92643763,172.89,172.86,0.14216157]
[1748519213684,5.78427606,172.89,172.88,12.26302688]
[1748519213864,5.78427606,172.89,172.87,12.26302688]
[1748519215070,6.06801313,172.9,172.88,12.26302688]
[1748519215469,6.06801313,172.9,172.87,12.26302688]
[1748519215864,5.92585156,172.9,172.88,0.14216157]
[1748519216081,5.92585156,172.9,172.88,12.26302688]
[1748519216384,5.78368999,172.9,172.89,12.40518845]
[1748519217171,0.14216157,172.91,172.89,12.40518845]
[1748519217381,20.23513965,172.97,172.91,0.14216157]
[1748519217569,20.23513965,172.97,172.95,12.26302688]
[1748519217777,20.23513965,172.97,172.94,12.26302688]
[1748519217982,0.28432314,172.96,172.94,12.26302688]
[1748519219269,5.92417949,172.95,172.94,12.26302688]
[1748519219790,6.06634106,172.95,172.94,12.26302688]
[1748519220092,6.06634106,172.95,172.84,0.14216157]
[1748519220093,0.28432314,172.94,172.84,0.14216157]
[1748519220288,31.19699888,172.94,172.88,12.26302688]
[1748519220487,32.73359888,172.94,172.88,12.26302688]
[1748519220700,12.26302688,172.91,172.84,0.14216157]
[1748519220866,12.26302688,172.91,172.86,12.26302688]
[1748519221068,18.933972,172.9,172.85,12.26302688]
[1748519221269,20.24408583,172.89,172.84,12.40518845]
[1748519222090,5.78402452,172.89,172.86,0.14216157]
[1748519222394,0.14216157,172.88,172.87,12.26302688]
[1748519223364,5.7846937,172.87,172.86,12.40518845]
[1748519223569,0.14216157,172.86,172.85,12.26302688]
[1748519223764,0.14216157,172.86,172.84,12.26302688]
[1748519224169,0.28432314,172.86,172.83,0.14216157]
[1748519224800,0.28432314,172.86,172.83,12.40518845]
[1748519225500,5.78536303,172.85,172.83,12.40518845]
[1748519227198,0.14216157,172.88,172.85,0.14216157]
[1748519227411,0.14216157,172.88,172.85,12.40518845]
[1748519227711,5.7846937,172.87,172.85,0.14216157]
[1748519227881,0.28432314,172.86,172.83,12.26302688]
[1748519228768,0.14216157,172.86,172.84,0.14216157]
[1748519228974,0.14216157,172.86,172.84,12.40518845]
[1748519229175,5.7846937,172.87,172.85,12.26302688]
[1748519229374,0.14216157,172.89,172.85,12.26302688]
[1748519229375,14.45887865,172.91,172.86,12.26302688]
[1748519229599,24.43233549,172.93,172.89,12.26302688]
[1748519229903,0.28432314,172.92,172.87,12.40518845]
[1748519230069,31.19699888,172.9,172.84,0.14216157]
[1748519230270,18.933972,172.9,172.86,12.26302688]
[1748519230801,0.28432314,172.9,172.86,12.26302688]
[1748519231481,0.28432314,172.88,172.86,12.26302688]
[1748519232308,0.28432314,172.88,172.85,12.26302688]
[1748519232693,0.28432314,172.88,172.84,12.40518845]
[1748519232873,0.28432314,172.88,172.84,0.14216157]
[1748519233396,0.28432314,172.88,172.84,12.40518845]
[1748519233604,5.7846937,172.87,172.85,12.26302688]
[1748519233895,5.9264969,172.89,172.86,12.40518845]
[1748519234098,5.78378714,172.9,172.88,12.40518845]
[1748519234298,147.3,172.92,172.89,12.26302688]
[1748519234509,0.14216157,172.91,172.9,12.26302688]
[1748519235606,5.92551707,172.91,172.9,12.26302688]
[1748519236217,5.7833555,172.91,172.9,12.40518845]
[1748519236896,5.7833555,172.91,172.9,0.14216157]
[1748519237225,0.14216157,172.9,172.89,12.26302688]
[1748519237382,0.28432314,172.9,172.88,38.26302688]
[1748519237579,5.92618609,172.89,172.88,38.26302688]
[1748519239510,5.78402452,172.89,172.88,38.40518845]
[1748519240418,5.7833555,172.91,172.89,0.14216157]
[1748519240602,5.7833555,172.91,172.89,12.40518845]
[1748519241000,0.14216157,172.9,172.87,38.26302688]
[1748519241211,0.14216157,172.9,172.85,0.14216157]
[1748519241212,0.14216157,172.9,172.85,12.40518845]
[1748519241515,18.933972,172.9,172.85,12.40518845]
[1748519241697,18.933972,172.9,172.81,7.5685]
[1748519241698,0.28432314,172.9,172.86,12.26302688]
[1748519242799,0.14216157,172.88,172.86,12.26302688]
[1748519244901,5.92682684,172.88,172.86,12.26302688]
[1748519246494,5.92682684,172.88,172.87,12.26302688]
[1748519247412,5.92682684,172.88,172.84,26.14216157]
[1748519247615,5.92682684,172.88,172.87,12.26302688]
[1748519248504,5.92682684,172.88,172.86,12.26302688]
[1748519251105,147.3,172.92,172.88,0.14216157]
[1748519251419,5.78201792,172.95,172.91,12.40518845]
[1748519251601,5.78201792,172.95,172.93,12.26302688]
[1748519252125,5.78201792,172.95,172.94,12.26302688]
[1748519252297,5.92417949,172.95,172.94,12.26302688]
[1748519253001,5.78201792,172.95,172.94,12.26302688]
[1748519253307,5.78201792,172.95,172.93,12.26302688]
[1748519255206,5.7814296,172.97,172.94,0.14216157]
[1748519255412,5.7814296,172.97,172.96,12.26302688]
[1748519255621,5.92359117,172.97,172.96,12.26302688]
[1748519256196,0.14216157,172.99,172.96,12.26302688]
[1748519256424,28.89227159,173.06,172.98,12.26302688]
[1748519256425,5.78034682,173.0,172.98,12.26302688]
[1748519257327,0.14216157,173.0,172.98,12.26302688]
[1748519258610,5.78068096,172.99,172.98,12.40518845]
[1748519259706,5.78068096,172.99,172.98,0.14216157]
[1748519259905,5.78068096,172.99,172.98,12.40518845]
[1748519261805,5.92217428,173.01,172.99,0.14216157]
[1748519262920,5.92217428,173.01,172.95,26.14216157]
[1748519263123,5.92217428,173.01,172.99,12.26302688]
[1748519264314,5.92217428,173.01,172.96,0.14216157]
[1748519264522,5.92217428,173.01,172.99,12.26302688]
[1748519264730,14.44721484,173.05,173.0,12.40518845]
[1748519264922,14.44721484,173.05,173.03,12.26302688]
[1748519265107,5.77901063,173.04,173.02,12.26302688]
[1748519265305,0.14216157,173.03,172.99,26.0]
[1748519265524,0.28432314,173.03,172.99,26.0]
[1748519265741,0.28432314,173.03,172.98,12.40518845]
[1748519265926,0.28432314,173.03,172.99,12.26302688]
[1748519266435,0.28432314,173.03,173.0,12.26302688]
[1748519266816,0.14216157,173.01,172.99,12.26302688]
[1748519267134,0.14216157,173.01,173.0,12.26302688]
[1748519268230,5.92217428,173.01,173.0,12.26302688]
[1748519268621,5.92217428,173.01,172.99,12.26302688]
[1748519270410,5.92217428,173.01,172.98,0.14216157]
[1748519270642,5.92217428,173.01,172.99,12.26302688]
[1748519272243,5.92217428,173.01,173.0,12.26302688]
[1748519273713,5.78001271,173.01,173.0,12.26302688]
[1748519273918,5.92217428,173.01,173.0,12.26302688]
[1748519275039,18.79181043,173.0,172.89,6.0973]
[1748519275369,12.40518845,172.96,172.91,12.26302688]
[1748519275654,12.26302688,172.94,172.9,0.14216157]
[1748519275817,5.78068096,172.99,172.96,0.14216157]
[1748519276012,5.77967864,173.02,172.99,0.14216157]
[1748519276235,0.14216157,173.01,172.99,12.40518845]
[1748519276446,0.14216157,173.01,173.0,12.26302688]
[1748519276628,0.14216157,173.01,172.96,0.14216157]
[1748519276828,0.14216157,173.01,172.99,12.26302688]
[1748519277233,5.78034682,173.0,172.99,0.14216157]
[1748519277437,6.06466996,173.0,172.97,0.14216157]
[1748519277622,0.14216157,172.99,172.97,0.14216157]
[1748519278439,0.28432314,172.99,172.95,38.26302688]
[1748519278649,0.28432314,172.99,172.96,0.14216157]
[1748519278943,0.28432314,172.99,172.96,12.40518845]
[1748519279525,5.78101514,172.98,172.96,12.40518845]
[1748519280666,5.78101514,172.98,172.96,0.14216157]
[1748519281841,5.78101514,172.98,172.96,12.40518845]
[1748519282340,5.92317671,172.98,172.97,12.26302688]
[1748519283123,5.92317671,172.98,172.96,12.26302688]
[1748519284839,5.92317671,172.98,172.96,0.14216157]
[1748519285227,0.14216157,172.97,172.95,12.26302688]
[1748519285949,5.78168362,172.96,172.95,12.40518845]
[1748519286133,5.78168362,172.96,172.94,0.14216157]
[1748519286544,5.78168362,172.96,172.93,12.26302688]
[1748519286545,0.14216157,172.95,172.92,12.40518845]
[1748519286942,0.28432314,172.95,172.9,12.26302688]
[1748519287129,31.19699888,172.95,172.9,0.14216157]
[1748519287766,12.26302688,172.94,172.88,12.26302688]
[1748519287944,5.7833555,172.91,172.89,0.14216157]
[1748519288260,0.14216157,172.9,172.88,0.14216157]
[1748519288443,0.14216157,172.9,172.88,12.40518845]
[1748519289041,0.14216157,172.9,172.89,12.26302688]
[1748519289250,5.78168362,172.96,172.9,0.14216157]
[1748519289454,0.28432314,172.95,172.93,12.26302688]
[1748519289948,0.28432314,172.95,172.92,12.26302688]
[1748519290137,0.14216157,172.93,172.91,12.26302688]
[1748519290462,0.14216157,172.93,172.9,12.40518845]
[1748519290839,0.28432314,172.93,172.9,12.40518845]
[1748519291664,0.28432314,172.93,172.91,12.26302688]
[1748519291853,0.28432314,172.93,172.88,0.14216157]
[1748519292168,0.14216157,172.91,172.88,12.40518845]
[1748519294370,5.78368999,172.9,172.88,12.40518845]
[1748519297168,0.14216157,172.89,172.86,12.26302688]
[1748519297342,0.14216157,172.89,172.87,0.14216157]
[1748519298359,0.14216157,172.89,172.87,12.40518845]
[1748519299043,5.78435909,172.88,172.87,12.40518845]
[1748519301084,5.92518262,172.92,172.87,12.40518845]
[1748519301370,5.78101514,172.98,172.91,38.40518845]
[1748519301680,5.78101514,172.98,172.97,12.26302688]
[1748519301851,0.14216157,172.97,172.95,12.26302688]
[1748519302057,0.28432314,172.97,172.95,12.26302688]
[1748519302858,5.92384519,172.96,172.95,12.26302688]
[1748519303784,5.78168362,172.96,172.95,12.40518845]
[1748519305085,6.06533828,172.98,172.95,12.40518845]
[1748519305386,20.51787614,172.98,172.91,26.0]
[1748519305563,20.51787614,172.98,172.94,0.14216157]
[1748519305763,20.51787614,172.98,172.94,12.40518845]
[1748519306192,20.51787614,172.98,172.94,12.26302688]
[1748519306404,20.51787614,172.98,172.93,12.26302688]
[1748519307785,18.64964886,172.97,172.93,12.26302688]
[1748519309481,0.28432314,172.95,172.93,12.26302688]
[1748519310184,0.28432314,172.95,172.92,12.26302688]
[1748519311072,0.28432314,172.95,172.91,0.14216157]
[1748519311478,5.78235226,172.94,172.91,0.14216157]
[1748519311659,0.14216157,172.93,172.89,12.26302688]
[1748519312760,0.14216157,172.93,172.9,12.26302688]
[1748519313197,0.14216157,172.93,172.88,0.14216157]
[1748519313198,0.28432314,172.93,172.92,12.26302688]
[1748519313681,6.06700977,172.93,172.92,12.26302688]
[1748519314089,5.78168362,172.96,172.92,12.40518845]
[1748519314389,5.78168362,172.96,172.93,12.40518845]
[1748519314782,0.14216157,172.95,172.93,12.40518845]
[1748519315683,5.78235226,172.94,172.93,12.40518845]
[1748519316069,5.78235226,172.94,172.91,0.14216157]
[1748519316392,5.78235226,172.94,172.93,0.14216157]
[1748519317266,0.14216157,172.93,172.92,12.26302688]
[1748519317465,0.14216157,172.93,172.91,12.40518845]
[1748519318375,5.78302105,172.92,172.91,0.14216157]
[1748519320063,5.78302105,172.92,172.91,12.40518845]
[1748519320466,5.92518262,172.92,172.91,12.26302688]
[1748519320786,5.92518262,172.92,172.9,12.26302688]
[1748519321968,5.92518262,172.92,172.89,0.14216157]
[1748519321969,0.14216157,172.91,172.89,12.40518845]
[1748519322207,0.28432314,172.91,172.88,12.26302688]
[1748519322370,0.28432314,172.91,172.89,12.26302688]
[1748519322570,5.7836139,172.91,172.9,12.40518845]
[1748519323377,5.7836139,172.91,172.9,0.14216157]
[1748519323696,0.14216157,172.9,172.88,12.26302688]
[1748519324188,0.14216157,172.9,172.87,0.14216157]
[1748519324367,0.28432314,172.9,172.88,12.26302688]
[1748519324783,5.78402452,172.89,172.88,12.26302688]
[1748519325004,5.92618609,172.89,172.88,12.26302688]
[1748519326788,0.14216157,172.94,172.88,12.26302688]
[1748519326789,26.71935202,172.94,172.89,0.14216157]
[1748519326974,6.06700977,172.93,172.89,12.40518845]
[1748519328098,6.06700977,172.93,172.9,12.26302688]
[1748519328504,6.06700977,172.93,172.89,12.40518845]
[1748519329087,32.78675324,172.93,172.88,12.26302688]
[1748519329294,32.78675324,172.93,172.89,0.14216157]
[1748519330804,18.64964886,172.92,172.88,112.35397288]
[1748519332589,0.28432314,172.9,172.88,112.35397288]
[1748519334887,5.92618609,172.89,172.88,112.35397288]
[1748519335285,5.78370188,172.9,172.89,0.14216157]
[1748519335605,5.78370188,172.9,172.89,12.40518845]
[1748519336203,5.78370188,172.9,172.89,0.14216157]
[1748519336404,5.78370188,172.9,172.88,100.090946]
[1748519336405,0.14216157,172.89,172.88,100.090946]
[1748519337086,5.92618609,172.89,172.88,100.090946]
[1748519338224,5.92618609,172.89,172.88,112.35397288]
[1748519340300,5.78402452,172.89,172.88,112.49613445]
[1748519340506,0.14216157,172.9,172.88,112.49613445]
[1748519340707,159.56302688,172.94,172.9,0.14216157]
[1748519340899,5.78268663,172.93,172.91,12.26302688]
[1748519341200,5.78238683,172.94,172.92,0.14216157]
[1748519341398,5.78238683,172.94,172.92,12.40518845]
[1748519341724,5.78238683,172.94,172.88,100.090946]
[1748519341725,18.64964886,172.92,172.88,100.090946]
[1748519341934,0.14216157,172.9,172.88,100.090946]
[1748519342092,0.28432314,172.9,172.88,100.090946]
[1748519342292,5.92618609,172.89,172.88,100.090946]
[1748519342829,5.78402452,172.89,172.88,100.23310757]
[1748519342989,5.78402452,172.89,172.88,112.49613445]
[1748519343193,5.92618609,172.89,172.88,100.090946]
[1748519347765,18.33137454,172.89,172.88,100.090946]
[1748519355962,5.78402452,172.89,172.88,100.23310757]